bitfinex-derivatives/quotes_SOLF0:USTF0_20251222
["timestamp","ask_amount","ask_price","bid_price","bid_amount"]
[1766414164888,110.1369,127.17,127.11,4.8673]
[1766414165188,110.1243,127.18,127.11,4.8673]
[1766414165387,110.1161,127.19,127.11,4.8673]
[1766414165388,7.0806,127.16,127.11,4.8673]
[1766414165576,110.1035,127.21,127.11,4.8673]
[1766414165773,0.00074487,127.17,127.15,0.0588112]
[1766414165973,110.1199,127.19,127.11,4.8673]
[1766414166279,110.1523,127.15,127.07,92.92]
[1766414166486,110.1523,127.15,126.98,110.2902]
[1766414166487,110.1771,127.12,127.04,92.92]
[1766414166670,110.1937,127.1,127.07,0.05144395]
[1766414166876,110.2196,127.07,126.97,7.0909]
[1766414167187,110.2288,127.06,126.98,92.92]
[1766414167385,7.0874,127.04,126.98,92.92]
[1766414167687,110.1921,127.11,126.98,203.2142]
[1766414167879,110.1818,127.12,127.03,0.05704781]
[1766414168075,110.187,127.11,126.98,203.2142]
[1766414168281,110.1945,127.1,126.99,17.11]
[1766414168475,110.187,127.11,127.01,17.11]
[1766414168887,110.1949,127.1,127.05,0.05021017]
[1766414169182,110.1818,127.12,127.05,17.16021017]
[1766414169386,217.1502,127.16,127.05,17.16021017]
[1766414169387,110.1489,127.16,127.05,17.16021017]
[1766414169587,110.1489,127.16,127.03,110.2493]
[1766414169588,110.1489,127.16,127.09,0.05281964]
[1766414169793,110.114,127.2,127.09,17.16281964]
[1766414169983,110.114,127.2,127.13,0.04986871]
[1766414170184,202.9451,127.21,127.13,0.04986871]
[1766414170381,110.094,127.22,127.16,0.05173201]
[1766414170683,110.1112,127.2,127.16,0.00173201]
[1766414170886,7.0796,127.18,127.16,0.00173201]
[1766414171288,125.53222761,127.23,127.16,0.00173201]
[1766414171477,22.52242761,127.23,127.16,0.00173201]
[1766414171681,0.0590936,127.21,127.16,0.00173201]
[1766414174093,6.36552761,127.28,127.16,17.11173201]
[1766414174287,6.36552761,127.25,127.16,17.11]
[1766414174486,6.36552761,127.28,127.17,17.11]
[1766414174888,6.36552761,127.28,127.21,0.05326734]
[1766414175681,15.81552761,127.28,127.21,0.05326734]
[1766414176082,0.05040725,127.26,127.21,0.00326734]
[1766414176290,7.12570725,127.26,127.21,0.00326734]
[1766414176591,15.83552761,127.25,127.13,17.11]
[1766414176795,15.83552761,127.22,127.1,17.11]
[1766414177489,15.83552761,127.22,127.11,127.2941]
[1766414177490,6.36552761,127.22,127.11,127.2941]
[1766414177696,0.00236211,127.18,127.15,17.16982944]
[1766414178386,6.36552761,127.25,127.16,17.11]
[1766414178793,6.36552761,127.25,127.17,17.11]
[1766414179390,6.36552761,127.25,127.2,0.05222478]
[1766414179691,6.36552761,127.25,127.16,17.11]
[1766414180291,13.44132761,127.25,127.16,17.11]
[1766414180688,0.00229504,127.22,127.19,0.0574542]
[1766414183095,0.00229504,127.22,127.14,92.86]
[1766414183405,120.0557,127.24,127.14,92.86]
[1766414183606,6.36552761,127.22,127.14,92.86]
[1766414184007,0.05247195,127.19,127.14,92.86]
[1766414184204,6.41799956,127.19,127.14,92.86]
[1766414184402,0.05247195,127.19,127.14,92.86]
[1766414184903,0.05247195,127.19,127.12,17.11]
[1766414185105,0.05247195,127.19,127.14,0.05240828]
[1766414185305,7.13157195,127.19,127.14,0.05240828]
[1766414185504,126.57989956,127.19,127.09,17.11]
[1766414185707,10.04,127.18,127.09,17.11]
[1766414186008,10.04,127.18,127.02,111.51]
[1766414186009,6.36552761,127.13,127.02,111.51]
[1766414186308,6.36552761,127.13,127.02,211.458]
[1766414186502,0.05008177,127.09,127.06,0.05925123]
[1766414187412,120.3341,127.2,127.07,17.11]
[1766414187604,6.36552761,127.19,127.09,17.11]
[1766414187905,6.36552761,127.19,127.1,24.1935]
[1766414188108,6.36552761,127.21,127.11,17.11]
[1766414188302,0.00325052,127.17,127.15,0.05539102]
[1766414188802,0.00325052,127.17,127.11,17.11]
[1766414189804,0.00325052,127.17,127.13,0.05292289]
[1766414191011,7.08355052,127.17,127.08,92.86]
[1766414191210,7.0803,127.17,127.08,92.86]
[1766414191411,6.36552761,127.18,127.08,118.5047]
[1766414191617,10.49,127.21,127.1,18.56]
[1766414191903,7.0786,127.2,127.1,18.56]
[1766414192108,0.06050661,127.16,127.14,0.0566027]
[1766414192303,6.36552761,127.18,127.1,18.56]
[1766414192500,6.36552761,127.18,127.09,18.56]
[1766414193209,0.05198187,127.15,127.12,18.61882423]
[1766414193408,99.16552761,127.23,127.13,18.56]
[1766414193606,6.36552761,127.23,127.15,18.56]
[1766414193807,10.65,127.25,127.15,18.56]
[1766414194008,6.36552761,127.23,127.15,18.56]
[1766414194514,0.00050273,127.2,127.18,0.05871091]
[1766414195015,0.00050273,127.2,127.15,18.56]
[1766414195718,0.00050273,127.2,127.14,92.88]
[1766414195915,0.00050273,127.2,127.16,0.05421052]
[1766414196625,0.00050273,127.2,127.12,17.48]
[1766414196818,6.36552761,127.21,127.14,7.0813]
[1766414197003,6.36552761,127.21,127.14,24.5613]
[1766414197609,0.05360008,127.19,127.16,0.0524771]
[1766414198119,0.00360008,127.19,127.16,0.0524771]
[1766414198319,0.00360008,127.19,127.16,17.5324771]
[1766414198722,0.00360008,127.19,127.16,110.3924771]
[1766414198908,6.36552761,127.24,127.17,17.48]
[1766414199217,6.36552761,127.27,127.18,17.48]
[1766414199430,6.36552761,127.3,127.2,17.48]
[1766414199617,109.9973,127.33,127.22,17.48]
[1766414199618,6.36552761,127.33,127.22,17.48]
[1766414199915,0.05924381,127.29,127.26,0.05885465]
[1766414201314,18.2011,127.33,127.26,0.05885465]
[1766414201816,11.24,127.32,127.26,0.05885465]
[1766414202018,116.37812761,127.31,127.22,110.34]
[1766414202921,0.05620877,127.28,127.25,0.00012014]
[1766414203117,6.42173638,127.28,127.21,92.84]
[1766414203622,17.63173638,127.28,127.21,92.84]
[1766414203807,110.0476,127.27,127.19,17.48]
[1766414204008,110.0476,127.27,127.17,92.84]
[1766414204009,0.05153874,127.24,127.17,92.84]
[1766414205014,7.12773874,127.24,127.19,0.05287761]
[1766414205210,0.05745849,127.23,127.15,92.84]
[1766414205415,127.67162761,127.25,127.15,92.84]
[1766414205918,17.60552761,127.25,127.16,17.48]
[1766414206324,0.06064679,127.22,127.19,0.05238248]
[1766414207120,0.00064679,127.22,127.19,0.05238248]
[1766414207516,7.0746,127.27,127.19,0.05238248]
[1766414207824,17.69552761,127.28,127.18,17.48]
[1766414208020,6.36552761,127.28,127.18,17.48]
[1766414208521,0.05938887,127.24,127.22,0.05393075]
[1766414208919,0.05938887,127.24,127.17,17.48]
[1766414209229,7.0757,127.25,127.17,17.48]
[1766414209622,24.91982761,127.28,127.18,17.48]
[1766414209817,17.84552761,127.28,127.18,17.48]
[1766414210025,0.06056076,127.24,127.22,0.05762949]
[1766414210416,0.06056076,127.24,127.18,17.48]
[1766414210820,0.06056076,127.24,127.15,17.48]
[1766414211019,127.89162761,127.25,127.15,17.48]
[1766414211425,0.05063464,127.21,127.19,0.05723351]
[1766414211819,0.00063464,127.21,127.19,0.05723351]
[1766414212021,6.36552761,127.25,127.19,0.05723351]
[1766414212624,11.56,127.28,127.19,17.53723351]
[1766414212625,17.92552761,127.28,127.19,17.53723351]
[1766414212814,17.92552761,127.28,127.19,17.48]
[1766414213021,0.05702392,127.25,127.22,0.05276442]
[1766414213627,110.1027,127.21,127.06,17.48]
[1766414213829,110.1103,127.2,127.09,17.48]
[1766414214025,6.36552761,127.18,127.1,17.48]
[1766414214223,30.5974,127.22,127.11,7.0829]
[1766414214535,6.36552761,127.23,127.12,17.48]
[1766414214719,0.05200308,127.19,127.16,0.05919145]
[1766414214918,0.05200308,127.19,127.12,17.48]
[1766414216032,0.05200308,127.19,127.14,0.05332241]
[1766414219533,0.05200308,127.19,127.1,99.9235]
[1766414219534,6.36552761,127.17,127.1,92.84]
[1766414220036,7.0814,127.15,127.06,17.48]
[1766414220229,6.36552761,127.17,127.06,17.48]
[1766414220425,133.6294,127.2,127.07,17.48]
[1766414220426,110.1094,127.2,127.07,17.48]
[1766414220630,0.00195818,127.15,127.12,0.06065153]
[1766414220835,6.36552761,127.19,127.09,17.48]
[1766414221428,6.36552761,127.19,127.11,17.48]
[1766414221923,0.06012376,127.16,127.14,0.05138031]
[1766414222138,0.06012376,127.16,127.08,17.48]
[1766414222332,6.36552761,127.16,127.08,17.48]
[1766414222651,6.36552761,127.1,126.99,17.48]
[1766414222941,6.36552761,127.1,127.02,17.48]
[1766414223131,0.05363032,127.07,127.05,0.05658887]
[1766414223337,0.05363032,127.07,126.99,17.48]
[1766414223633,6.36552761,127.07,126.99,17.48]
[1766414224238,13.45082761,127.08,126.99,17.48]
[1766414224450,0.00483567,127.05,127.02,17.53778034]
[1766414224742,13.44832761,127.12,127.02,17.48]
[1766414225343,0.05835283,127.08,127.06,0.05395648]
[1766414226230,103.15861819,127.13,127.06,0.05395648]
[1766414226637,10.35861819,127.16,127.06,0.05395648]
[1766414226928,10.35861819,127.16,127.04,18.64]
[1766414227131,0.05765634,127.11,127.09,0.0602539]
[1766414227329,0.0585499,127.11,127.09,0.0602539]
[1766414227533,0.0585499,127.11,127.04,18.64]
[1766414228132,10.35861819,127.16,127.06,18.64]
[1766414228843,120.50041819,127.16,127.06,18.64]
[1766414229045,0.05413603,127.12,127.1,0.05173754]
[1766414229236,0.05413603,127.12,127.06,18.64]
[1766414230136,0.05413603,127.12,127.08,0.05066176]
[1766414230338,110.1233,127.19,127.11,18.64]
[1766414230339,10.35861819,127.19,127.11,18.64]
[1766414230647,10.35861819,127.22,127.12,18.64]
[1766414231230,110.1004,127.21,127.11,92.9]
[1766414231445,0.05788768,127.17,127.11,92.9]
[1766414231837,10.35861819,127.16,127.09,18.64]
[1766414232346,10.35861819,127.19,127.09,18.64]
[1766414232549,0.00014383,127.15,127.13,0.05264571]
[1766414232858,120.45091819,127.22,127.1,18.64]
[1766414233146,7.0779,127.21,127.11,18.64]
[1766414233650,0.05822882,127.17,127.15,0.05577151]
[1766414234343,120.42771819,127.25,127.15,18.69577151]
[1766414234543,120.42771819,127.25,127.15,18.64]
[1766414234744,110.0739,127.24,127.15,18.64]
[1766414235146,0.05388979,127.21,127.13,92.9]
[1766414235344,120.45261819,127.22,127.13,92.9]
[1766414235952,7.0785,127.2,127.13,92.9]
[1766414236145,0.05215071,127.18,127.15,0.0516231]
[1766414237847,0.05215071,127.18,127.08,18.64]
[1766414238151,10.35861819,127.19,127.08,18.64]
[1766414238342,120.47721819,127.19,127.08,111.54]
[1766414238539,110.1249,127.18,127.08,111.54]
[1766414238745,120.47721819,127.19,127.08,111.54]
[1766414238746,10.35861819,127.19,127.09,18.64]
[1766414239050,0.05002654,127.15,127.08,92.9]
[1766414239550,0.05002654,127.15,127.05,18.64]
[1766414239751,7.0812,127.15,127.05,18.64]
[1766414239950,0.0514849,127.11,127.04,92.88]
[1766414240152,0.0514849,127.11,127.04,111.52]
[1766414240548,0.0014849,127.11,127.05,18.64]
[1766414241141,0.0014849,127.11,127.05,25.7264]
[1766414241342,0.0014849,127.11,127.05,18.64]
[1766414241848,0.0014849,127.11,127.07,0.05903599]
[1766414242647,0.0014849,127.11,127.02,18.64]
[1766414242946,120.53741819,127.12,127.02,18.64]
[1766414243146,10.35861819,127.12,127.02,18.64]
[1766414243453,110.1649,127.14,127.02,18.64]
[1766414243754,0.00232604,127.09,127.07,18.69702095]
[1766414243956,10.35861819,127.16,127.07,18.64]
[1766414244452,213.31871819,127.19,127.07,18.64]
[1766414244650,0.05213804,127.14,127.12,0.05606671]
[1766414244845,0.05200286,127.14,127.12,0.05606671]
[1766414246546,10.35861819,127.22,127.12,0.05606671]
[1766414246748,10.35861819,127.22,127.11,18.64]
[1766414247143,110.0984,127.21,127.11,18.64]
[1766414247455,120.45061819,127.22,127.11,18.64]
[1766414247651,226.4484,127.23,127.15,0.06056663]
[1766414247652,0.00066166,127.18,127.15,0.06056663]
[1766414247854,0.00066166,127.18,127.13,18.64]
[1766414248261,0.00066166,127.18,127.14,25.7214]
[1766414248454,0.00066166,127.18,127.14,18.64]
[1766414248869,0.00066166,127.18,127.15,0.05619916]
[1766414250765,0.00066166,127.18,127.1,20.03]
[1766414250963,110.1094,127.2,127.1,20.03]
[1766414251459,7.0792,127.19,127.1,20.03]
[1766414251646,0.05927039,127.16,127.1,20.03]
[1766414251854,0.05927039,127.16,127.13,0.05450508]
[1766414252968,0.05927039,127.16,127.08,112.93]
[1766414253255,213.29711819,127.19,127.08,112.93]
[1766414253861,7.0797,127.18,127.09,20.03]
[1766414254058,0.05054051,127.15,127.12,0.05784633]
[1766414254256,10.35861819,127.2,127.12,0.05784633]
[1766414254455,10.35861819,127.2,127.11,20.03]
[1766414254456,7.0789,127.19,127.11,20.03]
[1766414254764,10.35861819,127.2,127.11,20.03]
[1766414255366,0.05605573,127.17,127.14,0.05758816]
[1766414256261,7.13615573,127.17,127.11,20.03]
[1766414256563,0.05605573,127.17,127.08,112.77]
[1766414256864,7.0807,127.16,127.08,112.77]
[1766414257258,7.0807,127.16,127.11,0.05242824]
[1766414257566,7.0796,127.18,127.11,19.92242824]
[1766414258362,0.06045877,127.16,127.11,0.05242824]
[1766414258548,0.06045877,127.16,127.08,92.9]
[1766414258754,110.1532,127.15,127.05,19.87]
[1766414258953,7.0829,127.12,127.05,19.87]
[1766414259353,110.1699,127.13,127.03,92.9]
[1766414259554,0.05889216,127.09,127.03,92.9]
[1766414260170,7.14339216,127.09,127.03,92.9]
[1766414260364,7.14339216,127.09,126.97,110.3011]
[1766414260365,110.2111,127.08,126.97,19.87]
[1766414260568,0.05022726,127.04,127.01,0.05496083]
[1766414261684,0.00022726,127.04,127.01,0.05496083]
[1766414262377,7.0842,127.1,127.01,19.92496083]
[1766414262573,103.19861819,127.11,127.01,19.87]
[1766414262574,10.35861819,127.11,127.01,19.87]
[1766414263459,0.05307412,127.07,127.05,0.05867204]
[1766414264167,0.05307412,127.07,126.98,26.9603]
[1766414264369,110.1982,127.1,126.98,119.8803]
[1766414264573,10.35861819,127.08,126.98,112.79]
[1766414264768,10.35861819,127.08,126.98,19.87]
[1766414265173,0.05245972,127.04,127.02,0.05103845]
[1766414265866,0.00245972,127.04,127.02,0.05103845]
[1766414268163,0.00245972,127.04,127.02,19.92103845]
[1766414268369,0.00245972,127.04,127.03,19.87]
[1766414268973,0.00245972,127.04,127.03,112.81]
[1766414269166,133.6508,127.18,127.07,26.9553]
[1766414269167,10.35861819,127.18,127.07,26.9553]
[1766414269366,110.1338,127.17,127.07,19.87]
[1766414270068,0.05978735,127.13,127.11,0.05928168]
[1766414270565,0.05978735,127.13,127.05,92.94]
[1766414270767,110.16,127.14,127.05,92.94]
[1766414271268,7.0829,127.12,127.05,92.94]
[1766414271467,0.05378333,127.1,127.07,0.05949039]
[1766414272275,0.05378333,127.1,127.01,112.81]
[1766414272573,7.0851,127.08,127.01,112.81]
[1766414272878,226.5874,127.09,126.98,19.87]
[1766414273171,0.00263674,127.05,127.02,0.03283027]
[1766414273379,144.06921819,127.11,127.0,19.87]
[1766414273575,133.7151,127.1,127.0,19.87]
[1766414274271,0.00075277,127.06,127.04,0.04970969]
[1766414274481,10.35861819,127.11,127.04,0.04970969]
[1766414274978,7.0845,127.09,127.04,0.04970969]
[1766414275178,0.05393201,127.08,127.0,19.87]
[1766414275479,7.0856,127.07,127.0,19.87]
[1766414275775,10.35861819,127.08,126.97,112.81]
[1766414275978,7.0862,127.06,126.97,112.81]
[1766414276280,0.05567158,127.03,127.0,0.05558483]
[1766414276480,7.0885,127.02,126.94,19.87]
[1766414276680,110.2481,127.04,126.94,19.87]
[1766414276872,110.2571,127.03,126.94,19.87]
[1766414277174,7.0892,127.01,126.94,19.87]
[1766414277383,0.05487698,126.99,126.96,0.02753575]
[1766414278679,0.00487698,126.99,126.96,0.02753575]
[1766414280180,92.88,127.06,126.96,19.89753575]
[1766414280383,92.88,127.06,126.96,19.87]
[1766414280573,92.88,127.06,126.96,26.9615]
[1766414280880,92.88,127.06,126.93,203.2785]
[1766414280881,92.88,127.06,126.97,19.87]
[1766414281387,0.0526726,127.03,127.0,0.05770009]
[1766414282876,0.0526726,127.03,126.94,19.87]
[1766414283078,10.35861819,127.02,126.91,19.87]
[1766414283480,110.2719,127.01,126.91,19.87]
[1766414283889,0.05188172,126.97,126.95,0.02471264]
[1766414284288,92.9,127.03,126.95,0.02471264]
[1766414284493,7.0901,126.99,126.9,22.64334376]
[1766414284792,7.0901,126.99,126.9,23.64334376]
[1766414285176,203.1569,127.03,126.93,19.92761466]
[1766414285177,0.05185763,126.96,126.93,19.92761466]
[1766414285381,203.1544,127.03,126.93,19.87]
[1766414285690,7.0885,127.02,126.93,26.9632]
[1766414285877,120.63151819,127.01,126.9,20.41]
[1766414286283,0.04968074,126.97,126.94,0.05766446]
[1766414287786,0.04968074,126.97,126.9,19.41]
[1766414287986,0.04968074,126.97,126.89,92.96]
[1766414287987,6.4393442,126.97,126.89,92.96]
[1766414288179,6.38966346,126.95,126.87,19.41]
[1766414288375,7.0935,126.93,126.84,19.41]
[1766414288789,0.05778041,126.9,126.87,0.00050807]
[1766414289016,0.05778041,126.9,126.78,19.41]
[1766414289017,123.86186346,126.89,126.78,19.41]
[1766414289287,6.38966346,126.86,126.77,19.41]
[1766414289794,6.38966346,126.86,126.75,19.41]
[1766414289984,226.8389,126.87,126.75,19.41]
[1766414290188,23.52,126.88,126.77,19.41]
[1766414290391,6.38966346,126.87,126.8,19.47065022]
[1766414290588,6.38966346,126.89,126.8,19.41]
[1766414290792,110.3463,126.93,126.8,19.41]
[1766414290793,92.94,126.91,126.8,19.41]
[1766414291295,0.05666137,126.87,126.84,0.05240039]
[1766414291498,0.05574117,126.87,126.84,0.05520987]
[1766414292086,0.05574117,126.87,126.81,19.41]
[1766414292488,0.05574117,126.87,126.78,112.41]
[1766414292792,6.38966346,126.87,126.78,112.41]
[1766414292991,0.05286756,126.84,126.81,0.02258607]
[1766414293388,6.38966346,126.91,126.81,0.02258607]
[1766414293699,99.34966346,126.91,126.81,19.41]
[1766414294288,0.0564504,126.87,126.78,19.41]
[1766414294585,6.38966346,126.86,126.76,19.41]
[1766414294790,6.38966346,126.88,126.79,19.41]
[1766414294991,92.96,126.9,126.79,19.41]
[1766414295189,116.76256346,126.9,126.8,19.41]
[1766414295393,116.76256346,126.9,126.77,19.41]
[1766414295394,0.05895648,126.86,126.77,19.41]
[1766414295593,0.04992801,126.83,126.77,19.41]
[1766414296295,6.38966346,126.89,126.79,19.46847999]
[1766414296506,6.38966346,126.89,126.79,19.41]
[1766414296894,6.38966346,126.89,126.8,19.41]
[1766414297197,6.44858549,126.86,126.76,19.41]
[1766414297384,6.38966346,126.86,126.76,19.41]
[1766414297808,6.38966346,126.83,126.75,93.04]
[1766414298301,0.0583441,126.8,126.75,112.45]
[1766414298889,110.3706,126.9,126.76,19.41]
[1766414299200,6.38966346,126.86,126.76,19.41]
[1766414299594,13.48726346,126.86,126.76,19.41]
[1766414299985,0.05789414,126.82,126.8,0.05241949]
[1766414300300,0.05789414,126.82,126.76,19.41]
[1766414300504,0.05789414,126.82,126.73,110.5098]
[1766414300505,6.38966346,126.81,126.73,19.41]
[1766414300889,6.38966346,126.82,126.73,19.41]
[1766414301107,13.48936346,126.82,126.73,19.41]
[1766414301397,0.05663037,126.79,126.73,19.41]
[1766414301801,110.4058,126.86,126.73,19.41]
[1766414301802,6.38966346,126.86,126.75,19.41]
[1766414302095,110.3658,126.91,126.81,19.41]
[1766414302096,99.40966346,126.91,126.81,19.41]
[1766414302295,110.3427,126.93,126.81,19.41]
[1766414302296,6.38966346,126.93,126.82,19.41]
[1766414302509,110.2954,126.99,126.86,19.41]
[1766414302695,0.06019245,126.94,126.87,19.41]
[1766414302890,0.06019245,126.94,126.91,0.05654091]
[1766414303090,0.06019245,126.94,126.84,19.41]
[1766414303298,13.48316346,126.93,126.84,19.41]
[1766414303705,6.38966346,126.9,126.81,112.49]
[1766414303907,110.3526,126.92,126.81,19.41]
[1766414304203,0.05708977,126.87,126.81,19.41]
[1766414304603,6.38966346,126.86,126.78,19.41]
[1766414304796,6.43942083,126.83,126.75,19.41]
[1766414304999,0.05098916,126.8,126.75,19.41]
[1766414305503,0.05098916,126.8,126.73,93.1]
[1766414305696,0.05098916,126.8,126.73,112.51]
[1766414306302,0.05098916,126.8,126.74,19.41]
[1766414306606,0.05098916,126.8,126.75,26.5131]
[1766414306994,0.05098916,126.8,126.75,19.41]
[1766414307307,0.00098916,126.8,126.76,19.46246001]
[1766414307601,116.79406346,126.86,126.76,19.46246001]
[1766414307805,6.38966346,126.83,126.76,19.41]
[1766414308001,6.38966346,126.86,126.76,19.41]
[1766414308204,6.38966346,126.88,126.8,19.41]
[1766414308404,0.05453523,126.85,126.83,0.05799571]
[1766414308708,0.00453523,126.85,126.83,0.05799571]
[1766414309396,0.00453523,126.85,126.78,100.2013]
[1766414309707,0.00453523,126.85,126.78,93.1]
[1766414309910,0.00453523,126.85,126.77,20.34]
[1766414310099,99.42966346,126.89,126.77,20.34]
[1766414310401,6.38966346,126.89,126.82,0.05908559]
[1766414311302,110.3525,126.92,126.82,0.05908559]
[1766414311303,6.38966346,126.92,126.82,0.05908559]
[1766414311606,0.05126512,126.88,126.86,0.05944122]
[1766414311793,0.05126512,126.88,126.79,113.44]
[1766414311990,6.38966346,126.89,126.79,113.44]
[1766414312395,6.38966346,126.89,126.8,20.34]
[1766414312908,0.00054322,126.86,126.83,20.39402713]
[1766414313110,6.38966346,126.92,126.83,20.34]
[1766414313900,0.05824918,126.89,126.86,0.05643862]
[1766414314109,0.05824918,126.89,126.8,20.34]
[1766414314295,110.3611,126.91,126.8,20.34]
[1766414314491,7.0963,126.88,126.8,20.34]
[1766414314709,116.76866346,126.89,126.8,20.34]
[1766414315109,0.05203547,126.86,126.8,20.34]
[1766414315409,0.05203547,126.86,126.79,93.1]
[1766414315806,0.05203547,126.86,126.8,18.85]
[1766414316010,6.38966346,126.92,126.8,18.85]
[1766414316201,116.74446346,126.92,126.8,18.85]
[1766414316402,7.0957,126.89,126.8,18.85]
[1766414316699,116.76936346,126.89,126.8,18.85]
[1766414316901,0.05042556,126.86,126.83,0.05202195]
[1766414317304,0.05042556,126.86,126.83,0.00202195]
[1766414317500,0.05042556,126.86,126.77,18.85]
[1766414317712,110.3874,126.88,126.77,18.85]
[1766414318217,7.098,126.85,126.77,18.85]
[1766414318414,0.04964693,126.82,126.77,18.85]
[1766414318608,0.04964693,126.82,126.74,18.85]
[1766414318811,0.05988961,126.79,126.74,18.85]
[1766414319309,116.79646346,126.86,126.74,18.85]
[1766414319511,7.0982,126.85,126.74,18.85]
[1766414319712,99.42966346,126.86,126.74,18.85]
[1766414320101,209.83416346,126.86,126.74,18.85]
[1766414320304,0.05992339,126.81,126.79,0.05755764]
[1766414320508,93.04,126.86,126.79,0.05755764]
[1766414320706,110.3898,126.88,126.79,0.05755764]
[1766414320707,7.0962,126.88,126.79,18.90755764]
[1766414321014,7.0962,126.88,126.79,18.85]
[1766414321220,7.0968,126.87,126.79,18.85]
[1766414321407,0.05555249,126.84,126.82,0.05506438]
[1766414321614,110.3856,126.88,126.82,0.05506438]
[1766414321815,7.0973,126.86,126.82,0.05506438]
[1766414322005,110.3964,126.87,126.82,0.05506438]
[1766414322210,7.0986,126.84,126.82,0.05506438]
[1766414322407,110.4039,126.86,126.77,93.12]
[1766414322408,110.4128,126.85,126.77,93.12]
[1766414322812,7.0988,126.84,126.77,111.97]
[1766414323018,110.4113,126.85,126.77,111.97]
[1766414323416,0.05741334,126.82,126.8,0.05012721]
[1766414323604,7.15701334,126.82,126.8,0.05012721]
[1766414323921,0.05741334,126.82,126.8,0.05012721]
[1766414324414,0.05741334,126.82,126.8,0.00012721]
[1766414324415,7.15701334,126.82,126.8,0.00012721]
[1766414324621,7.15701334,126.82,126.73,18.85]
[1766414324622,110.446,126.81,126.73,18.85]
[1766414324811,7.1014,126.79,126.73,18.85]
[1766414325012,110.4392,126.82,126.73,18.85]
[1766414325213,7.1014,126.79,126.73,18.85]
[1766414325422,110.4747,126.78,126.69,18.85]
[1766414325613,0.05618427,126.77,126.69,18.85]
[1766414325813,116.85546346,126.79,126.72,0.05913133]
[1766414326126,116.85546346,126.79,126.65,203.7021]
[1766414326127,110.499,126.75,126.66,18.85]
[1766414326324,110.499,126.75,126.6,121.39132882]
[1766414326325,6.38966346,126.73,126.62,18.85]
[1766414326528,6.38966346,126.73,126.64,18.85]
[1766414326824,99.42966346,126.77,126.64,18.85]
[1766414327017,6.38966346,126.77,126.66,18.85]
[1766414327214,6.38966346,126.8,126.7,18.90670365]
[1766414327416,6.38966346,126.81,126.7,18.85]
[1766414327622,110.4352,126.83,126.72,18.85]
[1766414327623,100.1391,126.83,126.72,18.85]
[1766414328130,6.38966346,126.84,126.74,18.85]
[1766414328422,6.38966346,126.9,126.77,18.85]
[1766414328621,6.38966346,126.9,126.78,18.85]
[1766414328824,6.38966346,126.9,126.79,18.85]
[1766414329230,6.38966346,126.92,126.8,18.85]
[1766414329518,110.3287,126.95,126.86,18.85]
[1766414329519,0.00018838,126.87,126.86,18.85]
[1766414329718,6.38966346,126.95,126.86,18.85]
[1766414329919,7.093,126.94,126.86,18.85]
[1766414330126,6.38966346,126.95,126.86,18.85]
[1766414330315,93.06,126.96,126.86,18.85]
[1766414330626,0.05871199,126.92,126.9,0.05163765]
[1766414331027,0.05871199,126.92,126.86,18.85]
[1766414331917,0.05871199,126.92,126.83,18.85]
[1766414332117,0.0515566,126.89,126.86,0.05227308]
[1766414332818,0.0515566,126.89,126.83,18.85]
[1766414333215,6.44122006,126.89,126.79,18.85]
[1766414333431,6.38966346,126.86,126.75,111.97]
[1766414333728,6.38966346,126.86,126.79,0.05612755]
[1766414333729,0.05448391,126.82,126.79,0.05612755]
[1766414335131,0.00448391,126.82,126.79,0.05612755]
[1766414335329,0.00448391,126.82,126.79,18.90612755]
[1766414335629,0.00448391,126.82,126.79,0.05612755]
[1766414337422,93.04,126.89,126.79,18.90612755]
[1766414337627,6.38966346,126.9,126.79,18.85]
[1766414338435,6.38966346,126.9,126.83,0.05188096]